Cogmind - Beta 15 @@@ ROGUE MODE // 2025.07.14 @ 04:05:23 Player: vilepis Result: Destroyed by as-55993 with Assembled Heavy Rifle Performance ------------- Evolutions (0) 0 Regions Visited (2) 400 Robots Destroyed (18) 90 Value Destroyed (465) 465 Prototype IDs (2) 40 Alien Tech Used (0) 0 Bonus (0) 0 TOTAL SCORE: 995 Bonus ------- None Cogmind --------- Core Integrity 0/250 Matter 201/300 Energy 99/100 System Corruption 17% Temperature Cool (0) Movement Core (200) Ox3 Location -10/Mines Parts ------- > --- POWER (1) -------- (None) > --- PROPULSION (2) --- (None) > --- UTILITY (2) ------ Medium Storage Unit > --- WEAPON (2) ------- (None) > --- INVENTORY (10) --- Compact Matter Pod (93) Particle Gun Peak State ------------ > --- POWER ------------ Ion Engine > --- PROPULSION ------- Wheel Wheel > --- UTILITY ---------- Improved Heat Sink Medium Storage Unit > --- WEAPON ----------- Particle Gun Particle Gun > --- INVENTORY -------- Ion Engine Particle Gun Light Cannon Light Cannon Mining Laser [Rating: 11] Favorites ----------- Power Ion Engine Engine Ion Engine Propulsion Wheel Leg Aluminum Leg Wheel Wheel Utility Improved Heat Sink Device Improved Heat Sink Storage Medium Storage Unit Weapon Particle Gun Energy Gun Particle Gun Ballistic Cannon Light Cannon Special Weapon Mining Laser Build | -11 -10 -10 ------- Run | Yrd Mat Min Slots Evolved . | . . . Power . | . . . Propulsion . | . . . Utility . | . . . Weapon . | . . . Parts Attached 19 | 5 11 3 Power 3 | 1 2 . Engine 3 | 1 2 . Core . | . . . Reactor . | . . . Propulsion 5 | 2 3 . Treads . | . . . Leg 2 | . 2 . Wheel 3 | 2 1 . Hover . | . . . Flight . | . . . Utility 2 | . 2 . Device 1 | . 1 . Storage 1 | . 1 . Processor . | . . . Hackware . | . . . Protection . | . . . Artifact . | . . . Weapon 9 | 2 4 3 Energy Gun 4 | 2 2 . Energy Cannon . | . . . Ballistic Gun . | . . . Ballistic Cannon 4 | . 2 2 Launcher . | . . . Special Weapon 1 | . . 1 Impact Weapon . | . . . Slashing Weapon . | . . . Piercing Weapon . | . . . Special Melee Weapon . | . . . Unidentified Prototypes . | . . . Parts Lost 11 | . 2 9 Power 1 | . . 1 Propulsion 4 | . 2 2 Utility 1 | . . 1 Weapon 5 | . . 5 Highest Loss Streak 7 | . 1 7 To Critical Strikes . | . . . Average Backups 3 | . 3 4 Power . | . . . Propulsion . | . . . Utility . | . . . Weapon 2 | . 3 3 Tool/Special . | . . . Unused Backups 2 | . . 2 Power . | . . . Propulsion . | . . . Utility 1 | . . 1 Weapon 1 | . . 1 Tool/Special . | . . . Average Slot Usage (%) 87 | . 90 71 Engine 12 | . 14 7 Leg 4 | . 2 18 Wheel 21 | . 25 . Device 11 | . 12 7 Storage 8 | . 6 14 Energy Gun 15 | . 15 16 Ballistic Cannon 11 | . 12 5 Peak Build Rating 11 | 5 11 11 Average Rating 8 | 3 9 6 On Entrance 5 | . 5 11 Naked Turns . | . . . Heaviest Build 22 | 9 22 22 Greatest Support 26 | 26 26 20 Greatest Overweight (x) 3 | . 2 3 Average Overweight (x) . | . . . Largest Inventory Capacity 10 | 5 10 10 Average Capacity 7 | 5 7 10 Most Carried 5 | . 5 5 Average Carried 3 | . 3 4 Final Capacity 10 | 5 10 10 Final Carried 4 | . 4 2 Class Distribution -------------------- 85% | Mutant 14% | Scavenger-Mutant Dominant Class ---------------- Mutant | -10/Materials Scavenger-Mutant | -10/Mines Resources | -11 -10 -10 ----------- Run | Yrd Mat Min Matter Collected 588 | 187 318 83 Remotely . | . . . Salvage Created 457 | . 416 41 Parts 31 | . 31 . Haulers Intercepted . | . . . Recyclers Shooed 1 | . 1 . Parts Field Recycled . | . . . Retrieved Matter . | . . . Parts Self-Destructed . | . . . Prevented . | . . . Kills | -11 -10 -10 ------- Run | Yrd Mat Min Combat Hostiles Destroyed 23 | . 16 7 Guns 5 | . 3 2 Cannons 17 | . 12 5 AOE 1 | . 1 . Classes Destroyed 4 | . 3 1 Watcher 2 | . 2 . Swarmer 6 | . 6 . Grunt 10 | . 10 . Assembled 7 | . . 7 Best Kill Streak 5 | . 3 5 Combat Bots Only 5 | . 3 5 Max Kills in Single Turn 1 | . 1 1 Gunslinging . | . . . Exploded 1 | . 1 . Melee . | . . . Uniques/NPCs Destroyed . | . . . Combat | -11 -10 -10 -------- Run | Yrd Mat Min Hostile Shots Fired 149 | . 60 89 Missed 51 | . 21 30 Hits 98 | . 39 59 Melee 12 | . . 12 Projectile 86 | . 39 47 Damage Taken 1425 | . 413 1012 Core 257 | . 82 175 Absorbed by Shields . | . . . Core Remaining (%) 100 | 100 . . Volleys Fired 59 | . 40 19 Largest 2 | . 2 2 Hottest 130 | . 130 130 Shots Fired 111 | . 80 31 Gun 26 | . 18 8 Cannon 83 | . 62 21 Launcher . | . . . Special 2 | . . 2 Kinetic 83 | . 62 21 Thermal 28 | . 18 10 Explosive . | . . . Electromagnetic . | . . . Robot Hit Streak 6 | . 6 3 Robot Miss Streak 4 | . 4 3 Penetration Max . | . . . Secondary Targets . | . . . Shots Hit Robots 54 | . 37 17 Core Hits 33 | . 21 12 Critical Kills . | . . . Critical Parts Destroyed . | . . . Critical Strikes 2 | . 2 . Burn 1 | . 1 . Blast 1 | . 1 . Melee Attacks . | . . . Impact . | . . . Slashing . | . . . Piercing . | . . . Sneak Attacks . | . . . Combat Hostiles . | . . . Follow-up Attacks . | . . . Damage Inflicted 1021 | . 660 361 Guns 244 | . 156 88 Cannons 674 | . 452 222 Explosions 52 | . 52 . Melee . | . . . Ramming 3 | . . 3 Kinetic 674 | . 452 222 Thermal 292 | . 156 136 Explosive . | . . . Electromagnetic 52 | . 52 . Impact . | . . . Slashing . | . . . Piercing . | . . . Highest Corruption 17 | . 3 17 Average Corruption 5 | . 2 8 Corruption Purged . | . . . Corruption Blocked . | . . . Effects 11 | . 5 6 Message Errors 2 | . 1 1 Matter Fused 4 | . 2 2 Heat Flow Errors 1 | . 1 . Data Loss (minor) 2 | . 1 1 Misdirections 1 | . . 1 Weapon Failures 1 | . . 1 Overload Shots . | . . . Overflow Damage 9 | . 9 . Projectiles 5 | . 5 . Explosions 4 | . 4 . Melee . | . . . Knockbacks 12 | . 5 7 Impact . | . . . Kinetic 9 | . 5 4 Secondary 3 | . . 3 Self-Inflicted Damage 25 | . 24 1 Shots 1 | . 1 . Rammed 2 | . . 2 Targets Rammed 2 | . . 2 Kicked . | . . . Crushed . | . . . Highest Temperature 199 | . 126 199 Average Temperature 55 | . 42 77 Received Heat Transfer 307 | . 147 160 Siege Activations . | . . . Martial Activations . | . . . Shielding Activations . | . . . Robots Disrupted . | . . . Combat Hostiles . | . . . Robots Corrupted . | . . . Combat Hostiles . | . . . Parts Fried . | . . . Impact Corruptions . | . . . Robots Melted . | . . . Combat Hostiles . | . . . Parts Melted 1 | . 1 . Heat Transferred 766 | . 444 322 Parts Sabotaged . | . . . Parts Stolen . | . . . Parts Stripped . | . . . Power Chain Reactions 1 | . 1 . Alert | -11 -10 -10 ------- Run | Yrd Mat Min Maximum Alert Level 1 | . 1 . Low Security (%) 86 | 100 82 100 Level 1 13 | . 17 . Level 2 . | . . . Level 3 . | . . . Level 4 . | . . . Level 5 . | . . . High Security . | . . . Max Security . | . . . Peak Influence 231 | . 231 48 Initial 48 | . . 48 Average 108 | . 132 16 Influence Increases 464 | . 464 . Destroy 0b10 Robot/C 320 | . 320 . Destroy 0b10 Robot/NC 10 | . 10 . Destroy Leader 54 | . 54 . Successful Hack 16 | . 16 . Disable Machine 30 | . 30 . Destroy Structure 4 | . 4 . Lose Combat Pursuer 30 | . 30 . Influence Decreases 464 | . 340 124 Entered New Map 76 | . . 76 Time Decay 350 | . 320 30 Lost Part 38 | . 20 18 Squads Dispatched 2 | . 2 . Investigation 2 | . 2 . Extermination . | . . . Reinforcement . | . . . Assault . | . . . Garrison . | . . . Intercept . | . . . Searches Triggered . | . . . Construction Impeded . | . . . Haulers Reinforced . | . . . Active Scanning Responses . | . . . Cargo Convoy Interrupts . | . . . Stealth | -11 -10 -10 --------- Run | Yrd Mat Min Distress Signals 2 | . 2 . Communications Jammed . | . . . Distress Signals . | . . . Times Spotted 46 | . 24 22 Peak Tracking Total 19 | . 4 19 Tactical Retreats 3 | . 1 2 Traps | -11 -10 -10 ------- Run | Yrd Mat Min Traps Triggered 3 | . 3 . Indirectly . | . . . Trap Hack Attempts . | . . . Triggered . | . . . Disarmed . | . . . Reprogrammed . | . . . Reused . | . . . Traps Extracted . | . . . Installed . | . . . Triggered . | . . . Machines | -11 -10 -10 ---------- Run | Yrd Mat Min Machines Disabled 2 | . 2 . Max in Single Turn 2 | . 2 . Machines Repaired . | . . . Machines Dismantled . | . . . Machines Sabotaged . | . . . Overloaded Fab Kills . | . . . Hacking | -11 -10 -10 --------- Run | Yrd Mat Min Machines Accessed 6 | . 6 . Terminals 5 | . 5 . Fabricators . | . . . Repair Stations . | . . . Recycling Units 1 | . 1 . Scanalyzers . | . . . Garrison Access . | . . . Total Hacks 11 | . 11 . Successful 4 | . 4 . Failed 7 | . 7 . Catastrophic 2 | . 2 . Database Lockouts . | . . . Manual 1 | . 1 . Terminals 9 | . 9 . Fabricators . | . . . Repair Stations . | . . . Recycling Units 2 | . 2 . Scanalyzers . | . . . Garrison Access . | . . . Terminal Hacks 2 | . 2 . Prototype ID Bank 1 | . 1 . Branch Access Points 1 | . 1 . Fabricator Hacks . | . . . Repair Station Hacks . | . . . Recycling Unit Hacks 2 | . 2 . Recycle Component 1 | . 1 . Retrieve Matter 1 | . 1 . Scanalyzer . | . . . Garrison Access Hacks . | . . . Unauthorized Hacks . | . . . Terminals . | . . . Fabricators . | . . . Repair Stations . | . . . Recycling Units . | . . . Scanalyzers . | . . . Garrison Access . | . . . Data Cores Recovered . | . . . Used . | . . . Hacking Detections 4 | . 4 . Full Trace Events 2 | . 2 . Feedback Events . | . . . Feedback Blocked . | . . . Robot Schematics Acquired . | . . . Robots Built . | . . . Authchips . | . . . Time . | . . . Total Robot Build Rating . | . . . Part Schematics Acquired . | . . . Parts Built . | . . . Authchips . | . . . Time . | . . . Total Part Build Rating . | . . . Parts Repaired . | . . . Time . | . . . Parts Recycled 1 | . 1 . Recycled Matter . | . . . Retrieved Matter 25 | . 25 . Retrieved Components . | . . . Parts Scanalyzed . | . . . Part Schematics Acquired . | . . . Parts Damaged . | . . . Bothacking | -11 -10 -10 ------------ Run | Yrd Mat Min Used RIF Installer . | . . . Robots Hacked . | . . . Non-combat . | . . . Combat . | . . . Robot Hacks Applied . | . . . Relay Couplers Released . | . . . Fabnet Peak Effective % . | . . . Robots Rewired . | . . . Allies Hacked . | . . . Hacks Repelled . | . . . Allies | -11 -10 -10 -------- Run | Yrd Mat Min Total Allies . | . . . Largest Group . | . . . Highest-Rated Group . | . . . Highest-Rated Ally . | . . . Total Orders . | . . . Ally Attacks . | . . . Total Damage . | . . . Kills . | . . . Allies Corrupted . | . . . Allies Melted . | . . . Intel | -11 -10 -10 ------- Run | Yrd Mat Min Active Infowar (turns) . | . . . Robot Analysis Total . | . . . Derelict Logs Recovered 1 | . . 1 Drone Launches . | . . . Drone Recoveries . | . . . Exploration | -11 -10 -10 ------------- Run | Yrd Mat Min Turns Passed 985 | 44 789 152 Spaces Moved 741 | 42 649 50 Core 5 | 1 . 4 Treads . | . . . Legs 74 | . 28 46 Wheels 662 | 41 621 . Hover . | . . . Flight . | . . . Fastest Speed 50 | 50 80 120 Average Speed 99 | 88 94 178 Slowest Speed 260 | 90 260 200 Overloaded Moves . | . . . Propulsion Burnouts . | . . . Robots Hopped . | . . . Potential Cave-ins . | . . . Cave-ins Triggered . | . . . Exploration Rate (%) 30 | 3 79 10 Regions Visited 2 Branch Regions 1 Pre-discovered Areas . | . . . Known Exits Taken 1 | . 1 . Unknown Exits Taken 1 | 1 . . Scrap Searched . | . . . Spaces Dug . | . . . Terrain Destroyed 3 | . 3 . Melee . | . . . Projectile . | . . . AOE 3 | . 3 . Terrain Rammed . | . . . Walls Destroyed . | . . . Machines Disabled . | . . . Actions | -11 -10 -10 --------- Run | Yrd Mat Min Total 865 | 46 743 76 Wait 40 | . 39 1 Move 739 | 41 648 50 Hop . | . . . Pick Up 5 | . 4 1 Fast Attach 9 | 5 4 . Attach 3 | . . 3 Detach . | . . . Swap 7 | . 7 . Drop 1 | . 1 . Fire 59 | . 40 19 Melee . | . . . Ram 2 | . . 2 Kick . | . . . Crush . | . . . Escape Stasis . | . . . Rewire . | . . . Trap . | . . . Miscellaneous . | . . . Route ------- -11/Scrapyard -10/Materials (discovered 4 exits: [*Mat x3] / *Min) -10/Mines History --------- Turn | Location | Event 5 | -11/Scrapyard | Discovered new exit (range 15) 45 | -11/Scrapyard | Entered Materials 152 | -10/Materials | Discovered new exit (range 15) 204 | -10/Materials | Discovered new exit (range 16) 284 | -10/Materials | Discovered new exit (range 3) 315 | -10/Materials | Build established: Mutant 478 | -10/Materials | Discovered new exit (range 3) 656 | -10/Materials | Identified exit to Mines 834 | -10/Materials | Entered Mines 844 | -10/Mines | Learned 2 Materials zone layouts 878 | -10/Mines | Assembled infested the area 883 | -10/Mines | Assisted by a Guerilla fighting off Assembled 916 | -10/Mines | Core integrity fell below 50% 925 | -10/Mines | System corruption reached 10% 945 | -10/Mines | Core integrity fell below 20% 972 | -10/Mines | Lost 7 parts (1p2n1u3w) 986 | -10/Mines | Destroyed by as-55993 with Assembled Heavy Rifle Last Messages --------------- 00931_ Particle Gun destroyed. 00931_ System corrupted by crushing effect (+4). 00933_ Aluminum Leg destroyed. 00933_ System corrupted by crushing effect (+3). 00934_ System corrupted: Matter fused (-6). 00934_ as-11871 destroyed. 00938_ as-96199 destroyed. 00941_ Mining Laser destroyed. 00948_ Slammed into as-24716. 00954_ as-24716 knocked back. 00955_ System corrupted: Matter fused (-5). 00957_ as-24716 destroyed. 00959_ Knocked back. 00960_ as-37103 knocked back. 00963_ Knocked back. 00969_ as-37103 destroyed. 00975_ System corrupted: Component data lost. 00978_ as-21065 destroyed. 00981_ as-21302 knocked back. 00982_ Lgt. Cannon destroyed. Map ----- +----------------------------------------------------+ | ?????????????????????????????????????????? | | ?????????????????????????????????????????? | | ?????????????????????????????????????????? | | ?????????????????????????????????????????? | | ?????????????????????????????????????????? | | ?????????????????????????????????????????? | | ?????????????????????????????????????????? | | ?????????????????????????????????????????? | | ?????????????????????????????????????????? | | ?????????????????????????????????????????? | | ?# ??????????????????????????????????????? | | # =??????????????????????????????????????? | | |% ?????????????????????????????????????? | | ????????????????????????????????????? | | #???????????????????????????????????? | | #??????????????????????????????????? | | #?????????????????????????????????? | | ?????????????????????????????????? | | % ????????????????????????????????? | | #???????????????????????????????? | | % %"#############??????????????????? | | % % % #??????####????????? | | ??????# = % #?????## ##???????? | | ??????############### ####### #???????? | | ????????????????????#a##aa #???????? | | ????????????????????#%aa @ ###??????? | | ????????????????????#####% #??????? | | ????????????????????????#### ! #??????? | | ???????????????????????????# ! #??????? | | ???????????????????????????# !! #??????? | | ???????????????????????????# !! #??????? | | ???????????????????????????# #??????? | | ???????????????????????????########??????? | | ?????????????????????????????????????????? | | ?????????????????????????????????????????? | | ?????????????????????????????????????????? | | ?????????????????????????????????????????? | | ?????????????????????????????????????????? | | | | | | | | | | | | | | | | | | | | | | | | | +----------------------------------------------------+ Best States ------------- Heat Dissipation 39 Energy Generation 10 Energy Capacity 250 Matter Stores 300 Matter Capacity 300 Sight Range 16 Terrain Scan Density 10 Evasion (%) 44 Item Schematics ----------------- None Robot Schematics ------------------ None Fabricated ------------ Nothing Repaired ---------- Nothing Alien Tech Used ----------------- None Achievements -------------- None Challenges ------------ None Game ------ Seed MetaBraceJammer Manual? 0 Play Time 00:12:43 Cumulative 16.4 hours Start 2025.07.14 @ 03:54:54 End 2025.07.14 @ 04:05:23 Sessions 1 Manual Loads 0 Difficulty Rogue Special Mode None Game No. 32 Rogue 32 Adventurer 0 Explorer 0 Win Type - Total 0 Types 0/0/0/0/0/0/0/0/0/0 Lore% 10 Gallery% 18 Achievement% 19 Wizard Run 0 Options --------- Layout 2 ASCII 0 Keyboard 0 Movement Mouse Keybinds 1 Fullscreen 2 Font 32/Smallcaps Map View 50x44 Zoom Use 0% Tactical HUD 1 Map Filters NONE Filters NONE Steam 1 RUN: b5b32ce8-d4a1-4a06-9220-45af05256166